bitfinex-derivatives/quotes_SOLF0:USTF0_20250321
["timestamp","ask_amount","ask_price","bid_price","bid_amount"]
[1742579552911,19.46309052,126.87,126.86,0.05338763]
[1742579554617,47.58309052,126.87,126.86,0.05338763]
[1742579556213,39.69729052,126.87,126.86,0.05338763]
[1742579557011,39.69729052,126.87,126.86,7.93978763]
[1742579557219,39.69729052,126.87,126.86,0.05338763]
[1742579557711,39.69729052,126.87,126.86,7.93978763]
[1742579561922,28.12,126.87,126.86,7.93978763]
[1742579562119,11.63048607,126.88,126.87,7.8858]
[1742579562323,0.05319555,126.88,126.87,7.8858]
[1742579564140,11.63048607,126.88,126.87,7.8858]
[1742579565332,11.63048607,126.88,126.86,7.93948763]
[1742579565534,19.51568607,126.88,126.86,7.93948763]
[1742579565831,11.57729052,126.87,126.86,0.05338763]
[1742579566025,19.46309052,126.87,126.86,0.05338763]
[1742579584365,11.57729052,126.87,126.86,7.93978763]
[1742579584657,28.12,126.87,126.86,0.05338763]
[1742579584852,28.12,126.87,126.86,7.93978763]
[1742579586568,19.51598607,126.88,126.86,7.93978763]
[1742579586758,28.12,126.87,126.86,7.93978763]
[1742579591956,36.0058,126.87,126.86,7.93978763]
[1742579592160,47.58309052,126.87,126.86,0.05338763]
[1742579604586,39.69729052,126.87,126.86,7.93978763]
[1742579604780,28.12,126.87,126.86,0.05338763]
[1742579605579,36.0058,126.87,126.86,0.05338763]
[1742579606588,47.58309052,126.87,126.86,0.05338763]
[1742579613896,7.8882,126.84,126.8,43.394543]
[1742579614097,39.69729052,126.83,126.8,43.394543]
[1742579614389,7.8891,126.82,126.8,43.394543]
[1742579614995,7.94294339,126.82,126.8,43.44745038]
[1742579615387,0.05384339,126.82,126.8,43.44745038]
[1742579616091,0.05384339,126.82,126.81,7.8895]
[1742579624399,19.52033391,126.82,126.8,7.94270738]
[1742579625095,7.8895,126.81,126.8,0.05290738]
[1742579628299,19.52043391,126.82,126.8,7.94310738]
[1742579629699,19.46679052,126.81,126.8,0.05290738]
[1742579630294,0.05384339,126.82,126.8,11.6301979]
[1742579631705,0.05384339,126.82,126.81,7.8895]
[1742579635814,0.05384339,126.82,126.81,19.46679052]
[1742579636812,0.05384339,126.82,126.81,7.8895]
[1742579638816,11.63113391,126.82,126.8,7.94270738]
[1742579639319,39.75113391,126.82,126.8,7.94270738]
[1742579639507,39.75113391,126.82,126.8,0.05290738]
[1742579639714,11.57729052,126.81,126.8,0.05290738]
[1742579640215,19.46679052,126.81,126.8,0.05290738]
[1742579648217,7.8918,126.78,126.74,11.57729052]
[1742579648418,47.58909052,126.78,126.74,11.57729052]
[1742579648622,39.69729052,126.78,126.74,11.57729052]
[1742579648821,39.69729052,126.78,126.76,7.8923]
[1742579649124,28.12,126.78,126.76,7.8923]
[1742579649426,28.17617777,126.78,126.76,7.94564271]
[1742579649726,28.17617777,126.78,126.77,7.892]
[1742579650820,0.05617777,126.78,126.77,7.892]
[1742579656629,11.63346829,126.78,126.76,0.05334271]
[1742579656823,39.69729052,126.77,126.76,0.05334271]
[1742579658539,47.58929052,126.77,126.76,0.05334271]
[1742579660435,28.12,126.77,126.76,7.94604271]
[1742579661144,28.12,126.77,126.76,0.05334271]
[1742579661339,36.012,126.77,126.76,0.05334271]
[1742579661538,47.58929052,126.77,126.76,0.05334271]
[1742579663330,39.69729052,126.77,126.76,0.05334271]
[1742579664240,39.69729052,126.77,126.76,7.94604271]
[1742579664936,0.05617777,126.78,126.77,7.892]
[1742579669139,0.05617777,126.78,126.77,47.58929052]
[1742579669346,39.69729052,126.83,126.78,11.57729052]
[1742579669532,39.69729052,126.83,126.79,11.57729052]
[1742579670142,39.69729052,126.83,126.81,7.889]
[1742579670444,0.05943573,126.82,126.81,7.889]
[1742579671044,11.63672625,126.82,126.81,7.889]
[1742579680556,11.63672625,126.82,126.8,7.94433173]
[1742579680855,11.63672625,126.82,126.8,0.05453173]
[1742579682250,11.63672625,126.82,126.81,7.8895]
[1742579682755,7.8895,126.81,126.8,0.05453173]
[1742579683054,11.63672625,126.82,126.8,0.05453173]
[1742579683257,11.63672625,126.82,126.8,7.94433173]
[1742579683663,11.63672625,126.82,126.8,0.05453173]
[1742579683955,11.63672625,126.82,126.8,7.94433173]
[1742579685156,19.52582625,126.82,126.8,7.94433173]
[1742579685656,0.05943573,126.82,126.81,7.8895]
[1742579688155,0.05943573,126.82,126.81,19.46679052]
[1742579689652,0.05943573,126.82,126.81,7.8895]
[1742579694351,0.05943573,126.82,126.81,19.46679052]
[1742579696564,0.05943573,126.82,126.81,7.8895]
[1742579701360,0.05943573,126.82,126.81,19.46679052]
[1742579701769,11.57729052,126.87,126.86,7.8864]
[1742579701952,28.1,126.87,126.86,7.8864]
[1742579702359,11.57729052,126.88,126.86,7.8864]
[1742579703068,39.73445408,126.88,126.86,7.94102371]
[1742579703268,11.57729052,126.87,126.86,7.94102371]
[1742579703973,11.57729052,126.87,126.86,0.05462371]
[1742579704569,19.46309052,126.87,126.86,0.05462371]
[1742579714573,11.57729052,126.87,126.86,0.05462371]
[1742579714877,47.62005408,126.88,126.86,7.94102371]
[1742579715061,36.04276356,126.88,126.86,7.94102371]
[1742579715877,19.46309052,126.87,126.86,0.05462371]
[1742579721483,0.05716356,126.88,126.87,7.8858]
[1742579721783,39.67729052,126.92,126.87,11.57729052]
[1742579722278,7.8836,126.91,126.87,19.46279052]
[1742579722472,19.46089052,126.91,126.87,7.8855]
[1742579722674,0.05416698,126.9,126.88,7.93967034]
[1742579724274,28.1,126.89,126.88,0.05447034]
[1742579724482,39.67729052,126.89,126.88,0.05447034]
[1742579725678,28.1,126.89,126.88,0.05447034]
[1742579726587,28.1,126.89,126.88,7.93967034]
[1742579729392,28.1,126.89,126.88,0.05447034]
[1742579729580,39.67729052,126.89,126.88,0.05447034]
[1742579730084,47.56189052,126.89,126.88,0.05447034]
[1742579731892,39.67729052,126.89,126.88,0.05447034]
[1742579732493,47.56189052,126.89,126.88,0.05447034]
[1742579732694,39.67729052,126.89,126.88,0.05447034]
[1742579733381,39.67729052,126.89,126.88,7.93967034]
[1742579734485,39.67729052,126.89,126.88,0.05447034]
[1742579734690,47.56189052,126.89,126.88,0.05447034]
[1742579736297,39.67729052,126.89,126.88,0.05447034]
[1742579737886,47.56189052,126.89,126.88,0.05447034]
[1742579742397,39.67729052,126.89,126.88,0.05447034]
[1742579742999,47.56189052,126.89,126.88,0.05447034]
[1742579750705,7.8866,126.86,126.83,11.57729052]
[1742579750904,35.9666,126.86,126.83,19.46519052]
[1742579751091,35.9666,126.86,126.83,7.8879]
[1742579751813,36.02623288,126.86,126.83,7.94255251]
[1742579752114,36.02623288,126.86,126.84,7.8877]
[1742579752615,7.8871,126.85,126.83,0.05465251]
[1742579753518,7.8877,126.84,126.83,0.05465251]
[1742579754013,7.8873,126.85,126.83,7.94265251]
[1742579754615,36.02643288,126.86,126.83,19.51994303]
[1742579754811,28.13963288,126.86,126.84,11.57729052]
[1742579755411,28.13963288,126.86,126.85,7.8871]
[1742579755610,36.02603288,126.86,126.84,11.57729052]
[1742579755813,28.13963288,126.86,126.84,11.57729052]
[1742579756122,28.13963288,126.86,126.84,19.46439052]
[1742579756713,28.13963288,126.86,126.85,7.8871]
[1742579757221,28.13963288,126.86,126.85,19.46439052]
[1742579757811,28.13963288,126.86,126.84,19.46469052]
[1742579758114,0.05963288,126.86,126.84,19.46469052]
[1742579758319,0.05963288,126.86,126.84,7.8874]
[1742579758519,7.94633288,126.86,126.84,7.8874]
[1742579761221,7.94633288,126.86,126.83,19.51984303]
[1742579761417,7.8872,126.85,126.83,19.51984303]
[1742579762624,0.05963288,126.86,126.83,11.63194303]
[1742579764123,7.94623288,126.86,126.84,7.8873]
[1742579765225,7.8874,126.85,126.83,7.94255251]
[1742579766329,7.94633288,126.86,126.84,7.8877]
[1742579766628,7.94633288,126.86,126.83,0.05465251]
[1742579767429,7.94633288,126.86,126.83,7.94245251]
[1742579767945,7.94633288,126.86,126.83,0.05465251]
[1742579768231,0.05963288,126.86,126.83,0.05465251]
[1742579768420,0.05963288,126.86,126.83,11.63194303]
[1742579769530,0.05963288,126.86,126.85,7.8871]
[1742579770831,7.94603288,126.86,126.85,7.8871]
[1742579771429,0.05963288,126.86,126.85,7.8871]
[1742579774035,7.94603288,126.86,126.85,7.8871]
[1742579774941,0.05963288,126.86,126.85,7.8871]
[1742579776139,7.94603288,126.86,126.85,7.8871]
[1742579776326,0.05963288,126.86,126.85,7.8871]
[1742579776931,7.94603288,126.86,126.84,7.8873]
[1742579778344,0.05963288,126.86,126.85,7.8871]
[1742579778643,0.05963288,126.86,126.83,11.63194303]
[1742579778839,7.94643288,126.86,126.84,7.8874]
[1742579779940,7.8874,126.85,126.83,11.63194303]
[1742579780132,28.08,126.84,126.83,0.05465251]
[1742579781442,35.9677,126.84,126.83,0.05465251]
[1742579783244,47.54499052,126.84,126.83,0.05465251]
[1742579783844,35.9677,126.84,126.83,0.05465251]
[1742579792748,28.08,126.84,126.83,7.94295251]
[1742579794751,28.08,126.84,126.83,0.05465251]
[1742579795150,28.08,126.84,126.83,7.94295251]
[1742579796646,19.5236234,126.86,126.84,7.8875]
[1742579796850,28.08,126.85,126.84,7.8875]
[1742579797043,35.9671,126.85,126.84,7.8875]
[1742579797238,35.9671,126.85,126.83,7.94255251]
[1742579798047,28.08,126.85,126.83,0.05465251]
[1742579798351,28.08,126.85,126.84,7.8877]
[1742579798556,0.05963288,126.86,126.83,0.05465251]
[1742579798855,0.05963288,126.86,126.85,7.8871]
[1742579799053,28.13963288,126.86,126.85,7.8871]
[1742579799253,7.94603288,126.86,126.84,7.8873]
[1742579799555,36.02603288,126.86,126.84,7.8873]
[1742579800352,28.13963288,126.86,126.85,7.8871]
[1742579800654,28.13963288,126.86,126.83,11.63194303]
[1742579800850,36.02603288,126.86,126.84,7.8872]
[1742579801847,47.6033234,126.86,126.84,7.8872]
[1742579803156,7.8871,126.85,126.84,7.8872]
[1742579803458,7.8871,126.85,126.83,7.94265251]
[1742579804258,47.6037234,126.86,126.84,7.8877]
[1742579804555,39.7169234,126.86,126.83,0.05465251]
[1742579805249,7.8871,126.85,126.83,7.94265251]
[1742579806054,36.02643288,126.86,126.83,0.05465251]
[1742579806254,11.57729052,126.85,126.83,0.05465251]
[1742579806757,7.8877,126.84,126.83,0.05465251]
[1742579808256,19.46469052,126.85,126.83,7.94295251]
[1742579808458,7.8874,126.85,126.83,0.05465251]
[1742579808660,39.7169234,126.86,126.83,0.05465251]
[1742579809163,7.8871,126.85,126.83,0.05465251]
[1742579809760,7.8871,126.85,126.83,7.94285251]
[1742579814162,7.8877,126.84,126.83,0.05465251]
[1742579816161,11.57729052,126.82,126.78,43.394543]
[1742579816464,11.57729052,126.79,126.74,271.2158938]
[1742579816661,11.57729052,126.77,126.74,271.2158938]
[1742579816860,39.75729052,126.77,126.74,271.2158938]
[1742579817165,47.64929052,126.77,126.75,279.25300712]
[1742579817464,47.64929052,126.77,126.76,33.03734952]
[1742579817670,50.1537471,126.77,126.76,33.03734952]
[1742579817964,50.1537471,126.77,126.76,13.30416457]
[1742579818467,47.64929052,126.77,126.76,13.30416457]
[1742579818654,7.8927,126.76,126.75,0.05411992]
[1742579818860,19.46999052,126.76,126.75,0.05411992]
[1742579819760,47.64999052,126.76,126.75,0.05411992]
[1742579820162,39.75729052,126.76,126.75,0.05411992]
[1742579821768,47.64999052,126.76,126.75,0.05411992]
[1742579821970,39.75729052,126.76,126.75,0.05411992]
[1742579823562,28.18,126.76,126.75,0.05411992]
[1742579826672,0.05814046,126.78,126.75,39.89141044]
[1742579826979,50.37053197,126.84,126.77,11.57729052]
[1742579827175,43.76134474,126.84,126.81,11.57729052]
[1742579827673,43.76134474,126.84,126.83,11.57729052]
[1742579827872,43.76134474,126.84,126.83,19.46559052]
[1742579828261,43.76134474,126.84,126.82,0.05160006]
[1742579828262,43.76134474,126.84,126.82,11.62889058]
[1742579828774,10.94033618,126.84,126.82,11.62889058]
[1742579828972,0.0587795,126.85,126.82,11.62889058]
[1742579829876,0.0587795,126.85,126.82,19.51749058]
[1742579831472,0.0587795,126.85,126.83,7.8883]
[1742579831659,0.0587795,126.85,126.82,0.05160006]
[1742579831865,11.63607002,126.85,126.82,0.05160006]
[1742579832568,11.63607002,126.85,126.82,7.94030006]
[1742579832770,11.63607002,126.85,126.82,0.05160006]
[1742579833269,0.0587795,126.85,126.82,0.05160006]
[1742579833772,0.0587795,126.85,126.83,7.888]
[1742579834163,0.0587795,126.85,126.82,0.05160006]
[1742579834673,0.0587795,126.85,126.82,11.62889058]
[1742579834874,0.0587795,126.85,126.84,11.57729052]
[1742579835277,0.0587795,126.85,126.83,11.57729052]
[1742579835677,0.0587795,126.85,126.84,7.8877]
[1742579837080,0.0587795,126.85,126.84,19.46499052]
[1742579838080,0.0587795,126.85,126.84,7.8877]
[1742579842388,0.0587795,126.85,126.84,19.46499052]
[1742579846791,11.57729052,126.9,126.84,11.57729052]
[1742579846976,28.16,126.9,126.86,11.57729052]
[1742579847379,28.16,126.9,126.87,11.57729052]
[1742579847580,11.57729052,126.93,126.88,11.57729052]
[1742579847786,28.18,126.92,126.88,11.57729052]
[1742579848090,28.23191109,126.92,126.89,0.05816275]
[1742579848480,28.23191109,126.92,126.91,7.883]
[1742579848991,0.05191109,126.92,126.91,7.883]
[1742579849391,28.21191109,126.92,126.91,7.883]
[1742579849786,0.05191109,126.92,126.91,7.883]
[1742579854696,0.05191109,126.92,126.91,19.46029052]
[1742579855992,11.57729052,126.97,126.96,7.8801]
[1742579856294,28.14,126.97,126.96,7.8801]
[1742579857189,11.62408292,126.98,126.97,7.8796]
[1742579857390,39.78408292,126.98,126.97,7.8796]
[1742579857996,39.78408292,126.98,126.95,0.05194657]
[1742579859299,47.66338292,126.98,126.95,0.05194657]
[1742579859695,11.57729052,126.96,126.95,0.05194657]
[1742579859900,19.45749052,126.96,126.95,0.05194657]
[1742579860806,11.57729052,126.96,126.89,17.90539052]
[1742579860993,11.57729052,126.92,126.88,271.75729052]
[1742579861194,28.2,126.92,126.88,271.75729052]
[1742579861797,28.2,126.92,126.89,7.8845]
[1742579862002,0.05917034,126.91,126.89,7.9387753]
[1742579862694,0.05917034,126.91,126.89,19.51606582]
[1742579864009,0.05917034,126.91,126.89,11.63156582]
[1742579865003,0.05917034,126.91,126.89,19.51606582]
[1742579867496,7.94257034,126.91,126.89,19.51606582]
[1742579869098,7.94257034,126.91,126.89,0.0542753]
[1742579869099,7.884,126.9,126.89,0.0542753]
[1742579869507,19.46129052,126.9,126.89,0.0542753]
[1742579870503,7.884,126.9,126.89,0.0542753]
[1742579874106,7.94277034,126.91,126.89,7.9388753]
[1742579874310,0.05917034,126.91,126.89,19.51616582]
[1742579876509,0.05917034,126.91,126.9,7.884]
[1742579878903,7.94247034,126.91,126.89,7.9386753]
[1742579879613,0.05917034,126.91,126.89,7.9386753]
[1742579880814,0.05917034,126.91,126.9,7.884]
[1742579883506,11.63646086,126.91,126.89,0.0542753]
[1742579883913,19.46129052,126.9,126.89,0.0542753]
[1742579885804,7.884,126.9,126.89,0.0542753]
[1742579886619,19.46129052,126.9,126.89,0.0542753]
[1742579887021,7.884,126.9,126.89,0.0542753]
[1742579887821,7.94287034,126.91,126.89,0.0542753]
[1742579888023,0.05917034,126.91,126.89,7.9383753]
[1742579889620,0.05917034,126.91,126.89,0.0542753]
[1742579890623,7.884,126.9,126.89,0.0542753]
[1742579890924,11.63646086,126.91,126.89,0.0542753]
[1742579891226,11.57729052,126.9,126.89,0.0542753]
[1742579891425,19.46129052,126.9,126.89,0.0542753]
[1742579894210,7.884,126.9,126.89,0.0542753]
[1742579895912,19.46129052,126.9,126.89,0.0542753]
[1742579896514,11.57729052,126.9,126.84,11.57729052]
[1742579896716,11.57729052,126.88,126.84,11.57729052]
[1742579897117,11.57729052,126.88,126.83,23.68379052]
[1742579897321,11.57729052,126.88,126.83,21.51279052]
[1742579897526,11.57729052,126.87,126.83,21.51279052]
[1742579897719,35.9471,126.86,126.84,0.05931175]
[1742579898426,28.06,126.86,126.84,19.52410227]
[1742579899828,28.06,126.86,126.85,7.8871]
[1742579900621,28.06,126.86,126.85,19.46439052]
[1742579900827,0.06034412,126.87,126.86,7.8864]
[1742579901027,0.06034412,126.87,126.86,19.46369052]
[1742579902820,10.94033618,126.91,126.9,7.884]
[1742579904027,10.94033618,126.91,126.89,19.51437333]
[1742579904233,10.94033618,126.91,126.89,7.93708281]
[1742579904433,18.82373618,126.91,126.89,7.93708281]
[1742579904833,7.8834,126.91,126.89,7.93708281]
[1742579905629,36.0211162,126.92,126.9,7.8838]
[1742579907130,36.0211162,126.92,126.89,7.93708281]
[1742579907338,7.8833,126.91,126.89,7.93708281]
[1742579908940,7.884,126.9,126.89,0.05288281]
[1742579915840,7.8835,126.91,126.89,7.93748281]
[1742579917737,36.0210162,126.92,126.89,7.93748281]
[1742579917935,28.1380162,126.92,126.89,7.93748281]
[1742579918542,7.8834,126.91,126.89,7.93748281]
[1742579921444,7.884,126.9,126.89,0.05288281]
[1742579924945,7.8837,126.91,126.89,7.93748281]
[1742579927351,7.884,126.9,126.89,0.05288281]
[1742579929154,19.46129052,126.9,126.89,0.05288281]
[1742579940665,35.944,126.9,126.89,0.05288281]
[1742579940966,47.52129052,126.9,126.89,0.05288281]
[1742579955172,28.06,126.9,126.89,0.05288281]
[1742579955771,28.06,126.9,126.89,7.93748281]
[1742579956066,35.944,126.9,126.89,0.05288281]
[1742579956368,47.52129052,126.9,126.89,0.05288281]
[1742579957869,28.06,126.9,126.89,0.05288281]
[1742579958270,28.06,126.9,126.89,7.93748281]
[1742579961975,7.8836,126.91,126.89,7.93748281]
[1742579963373,7.8836,126.91,126.9,7.884]
[1742579963575,35.9436,126.91,126.9,7.884]
[1742579964369,19.51830672,126.92,126.9,7.884]
[1742579964573,28.1180162,126.92,126.9,7.884]
[1742579964775,0.0580162,126.92,126.89,11.63017333]
[1742579965075,0.0580162,126.92,126.89,13.73547333]
[1742579965574,0.0580162,126.92,126.9,7.884]
[1742579966578,7.9409162,126.92,126.9,7.884]
[1742579968178,19.51820672,126.92,126.9,7.884]
[1742579971577,19.46059052,126.91,126.89,7.93718281]
[1742579971777,19.46059052,126.91,126.89,0.05288281]
[1742579971979,28.06,126.9,126.89,0.05288281]
[1742579972178,35.944,126.9,126.89,0.05288281]
[1742579972683,28.06,126.9,126.89,0.05288281]
[1742579972882,28.06,126.9,126.89,7.93748281]
[1742579980379,36.0010162,126.92,126.9,7.8836]
[1742579981292,47.57830672,126.92,126.9,7.8836]
[1742579981485,7.8833,126.91,126.89,7.93718281]
[1742579991504,7.884,126.9,126.89,0.05288281]
[1742579992595,7.884,126.9,126.89,7.93748281]
[1742579992795,19.46099052,126.91,126.89,7.93748281]
[1742579993096,7.8837,126.91,126.89,7.93748281]
[1742579997798,7.8837,126.91,126.9,7.884]
[1742579997988,7.8837,126.91,126.89,0.05288281]
[1742579998294,7.884,126.9,126.89,7.93718281]
[1742580000197,7.8837,126.91,126.89,7.93718281]
[1742580000501,7.8837,126.91,126.9,7.884]
[1742580000700,39.69530672,126.92,126.9,7.884]
[1742580001000,2.42895196,126.91,126.9,7.884]
[1742580001498,2.42895196,126.91,126.89,7.93718281]
[1742580001698,10.31275196,126.91,126.89,7.93718281]
[1742580002090,2.42895196,126.9,126.89,7.93718281]
[1742580002895,10.31295196,126.9,126.89,7.93718281]
[1742580003199,10.31295196,126.9,126.89,0.05288281]
[1742580003601,2.42895196,126.9,126.89,7.93748281]
[1742580003801,7.8837,126.91,126.89,7.93748281]
[1742580004497,7.8837,126.91,126.9,7.884]
[1742580004705,47.57830672,126.92,126.9,7.884]
[1742580005706,7.8833,126.91,126.89,7.93708281]
[1742580006605,7.884,126.9,126.89,0.05288281]
[1742580008400,19.46129052,126.9,126.89,0.05288281]
[1742580008803,19.46129052,126.9,126.85,4.3685]
[1742580008804,11.57729052,126.9,126.83,260.12]
[1742580009005,28.1180162,126.92,126.83,260.12]
[1742580009006,11.57729052,126.86,126.83,268.008]
[1742580009197,11.57729052,126.85,126.8,45.72019052]
[1742580009391,7.8878,126.84,126.8,17.68019052]
[1742580009591,11.57729052,126.85,126.8,17.68019052]
[1742580009592,11.57729052,126.85,126.82,7.8886]
[1742580009792,28.04,126.86,126.82,7.8886]
[1742580009793,35.9267,126.86,126.82,11.57729052]
[1742580009998,0.05606176,126.85,126.83,11.57729052]
[1742580010303,5.30879637,126.84,126.83,11.57729052]
[1742580010503,5.30879637,126.84,126.82,11.63244575]
[1742580010705,5.30879637,126.83,126.82,19.52134575]
[1742580011708,0.05606176,126.85,126.84,7.8877]
[1742580011903,11.57729052,126.9,126.84,11.57729052]
[1742580012204,28.04,126.9,126.87,11.57729052]
[1742580013111,39.67483828,126.9,126.87,0.05976888]
[1742580013798,39.67483828,126.9,126.88,7.8851]
[1742580014509,11.57729052,126.89,126.87,7.94526888]
[1742580014708,11.57729052,126.89,126.87,0.05976888]
[1742580015007,28.09754776,126.9,126.88,7.8849]
[1742580015204,28.09754776,126.9,126.87,0.05976888]
[1742580015401,28.09754776,126.9,126.87,11.6370594]
[1742580016012,28.09754776,126.9,126.89,7.8846]
[1742580018115,39.67483828,126.9,126.87,0.05976888]
[1742580018316,11.57729052,126.89,126.87,0.05976888]
[1742580018515,11.57729052,126.88,126.87,0.05976888]
[1742580019205,19.46249052,126.88,126.87,0.05976888]
[1742580024319,13.67849052,126.88,126.81,2.0554]
[1742580024510,11.57729052,126.84,126.81,2.0554]
[1742580024706,39.61729052,126.84,126.82,7.8884]
[1742580025612,35.98202922,126.84,126.82,7.93881795]
[1742580026118,28.09422922,126.84,126.82,7.93881795]
[1742580027425,35.98202922,126.84,126.82,7.93881795]
[1742580027725,28.09422922,126.84,126.82,7.93881795]
[1742580028027,39.67151974,126.84,126.82,0.05041795]
[1742580028827,7.8883,126.83,126.82,0.05041795]
[1742580029829,47.55951974,126.84,126.82,0.05041795]
[1742580030131,47.55951974,126.84,126.82,7.93921795]
[1742580030326,28.09422922,126.84,126.82,0.05041795]
[1742580031129,28.09422922,126.84,126.83,7.8883]
[1742580032332,0.05422922,126.84,126.83,7.8883]
[1742580032527,28.11422922,126.84,126.83,7.8883]
[1742580032830,28.11422922,126.84,126.82,7.93901795]
[1742580033030,36.00202922,126.84,126.82,7.93901795]
[1742580036551,5.28930769,126.83,126.82,7.93901795]
[1742580037347,33.34930769,126.83,126.82,7.93901795]
[1742580037548,33.34897201,126.83,126.82,7.93901795]
[1742580038650,28.06,126.83,126.82,7.93901795]
[1742580039349,39.63729052,126.83,126.82,0.05041795]
[1742580039751,47.52559052,126.83,126.82,0.05041795]
[1742580040151,35.9483,126.83,126.82,0.05041795]
[1742580041250,28.06,126.83,126.82,0.05041795]
[1742580042151,35.9483,126.83,126.82,0.05041795]
[1742580042854,28.06,126.83,126.82,0.05041795]
[1742580044152,35.9483,126.83,126.82,0.05041795]
[1742580046654,35.9483,126.83,126.82,7.93931795]
[1742580048053,35.9483,126.83,126.82,0.05041795]
[1742580049355,0.05422922,126.84,126.82,11.62770847]
[1742580049656,0.05422922,126.84,126.83,11.57729052]
[1742580049855,0.05422922,126.84,126.83,19.46559052]
[1742580053863,0.05422922,126.84,126.83,7.8883]
[1742580054354,7.8883,126.83,126.82,0.05041795]
[1742580054659,11.57729052,126.83,126.79,7.8905]
[1742580054861,39.63729052,126.82,126.79,7.8905]
[1742580055054,47.52649052,126.82,126.79,7.8905]
[1742580055654,47.52649052,126.82,126.79,7.95060007]
[1742580056358,7.8896,126.81,126.79,7.95060007]
[1742580056758,7.94947824,126.81,126.79,7.95060007]
[1742580057162,7.94947824,126.81,126.79,0.06010007]
[1742580057662,28.04,126.8,126.79,0.06010007]
[1742580058064,35.9302,126.8,126.79,0.06010007]
[1742580060259,28.04,126.8,126.79,0.06010007]
[1742580063167,28.04,126.8,126.79,7.95090007]
[1742580064466,28.04,126.8,126.79,19.52819059]
[1742580065966,0.05987824,126.81,126.8,7.8902]
[1742580066960,22.5176267,126.86,126.83,7.8883]
[1742580067162,22.5176267,126.86,126.81,11.57729052]
[1742580067365,28.06,126.85,126.82,11.57729052]
[1742580067970,28.06,126.85,126.83,7.888]
[1742580068266,28.11073839,126.85,126.83,7.888]
[1742580069159,0.05073839,126.85,126.83,7.888]
[1742580069759,0.05073839,126.85,126.82,11.63322036]
[1742580070255,7.93793839,126.85,126.83,7.888]
[1742580070467,0.05073839,126.85,126.83,7.888]
[1742580071369,11.62802891,126.85,126.82,0.05592984]
[1742580071573,28.06,126.84,126.82,0.05592984]
[1742580071873,7.8883,126.83,126.82,0.05592984]
[1742580072070,28.06,126.84,126.82,0.05592984]
[1742580072370,35.9483,126.84,126.82,0.05592984]
[1742580072571,28.06,126.84,126.82,0.05592984]
[1742580073374,11.57729052,126.83,126.82,0.05592984]
[1742580073574,19.46559052,126.83,126.82,0.05592984]
[1742580077176,7.8883,126.83,126.82,0.05592984]
[1742580079272,35.948,126.84,126.82,7.94482984]
[1742580080173,35.948,126.84,126.82,0.05592984]
[1742580081379,7.8883,126.83,126.82,0.05592984]
[1742580082785,47.52539052,126.84,126.82,7.94472984]
[1742580084085,7.8883,126.83,126.82,0.05592984]
[1742580085380,19.46559052,126.83,126.82,0.05592984]
[1742580087287,33.97478775,126.83,126.82,0.00301684]
[1742580087886,19.46559052,126.83,126.82,0.00301684]
[1742580088086,33.97431278,126.83,126.82,0.00301684]
[1742580088286,19.46559052,126.83,126.82,0.00301684]
[1742580089679,21.56809052,126.83,126.82,0.00301684]
[1742580093894,7.8907,126.8,126.78,7.8914]
[1742580094079,28.04,126.79,126.77,7.8917]
[1742580094285,39.61729052,126.79,126.77,7.8917]
[1742580094480,47.50859052,126.79,126.77,7.8917]
[1742580094988,28.04,126.79,126.78,7.8914]
[1742580095183,28.09266718,126.79,126.78,7.8914]
[1742580096178,0.05266718,126.79,126.78,19.46869052]
[1742580096383,28.04,126.82,126.81,7.889]
[1742580098188,28.09529529,126.83,126.82,7.8889]
[1742580100390,0.05529529,126.83,126.82,7.8889]
[1742580106887,0.05529529,126.83,126.81,11.57729052]
[1742580107087,0.05529529,126.83,126.8,11.63578658]
[1742580107288,0.05529529,126.83,126.81,7.8891]
[1742580107489,0.05529529,126.83,126.8,11.63578658]
[1742580107897,0.05529529,126.83,126.81,7.8895]
[1742580108100,0.05529529,126.83,126.8,11.63578658]
[1742580108495,0.05529529,126.83,126.82,7.8889]
[1742580115308,0.05529529,126.83,126.81,7.8893]
[1742580115616,7.94379529,126.83,126.81,7.8893]
[1742580116011,47.56108581,126.83,126.81,7.8893]
[1742580116708,47.56108581,126.83,126.8,7.94829606]
[1742580116909,7.889,126.82,126.8,7.94829606]
[1742580118604,7.8895,126.81,126.8,0.05849606]
[1742580118815,47.50679052,126.81,126.8,0.05849606]
[1742580119217,7.8918,126.78,126.75,268.1729]
[1742580119414,39.61729052,126.78,126.74,11.57729052]
[1742580119608,28.04,126.78,126.76,7.8924]
[1742580119809,14.77182203,126.77,126.76,7.8924]